fUSD/lending_fUSD_20250505
["ID","MTS","AMOUNT","RATE_DAILY","PERIOD"]
[359984541,1746462641531,-450.0,0.00019995,2]
[359984542,1746462641540,-450.0,0.00019995,2]
[359984543,1746462641549,-543.62361719,0.00019995,2]
[359984544,1746462641559,-928.84,0.00019995,2]
[359984545,1746462641568,-860.58,0.00019995,2]
[359984546,1746462641577,-841.72,0.00019995,2]
[359984547,1746462641587,-450.0,0.00019995,2]
[359984548,1746462641596,-4304.23493,0.00019996,2]
[359984549,1746462641605,-226.54749,0.00019996,2]
[359984550,1746462641614,-613.230198,0.00019996,2]
[359984551,1746462641623,-23729.342279,0.00019996,2]
[359984552,1746462641633,-325.751762,0.00019996,2]
[359984553,1746462641642,-7717.875436,0.00019996,2]
[359984554,1746462641651,-187.07347,0.00019996,2]
[359984555,1746462641660,-593.37,0.00019997,2]
[359984556,1746462641670,-593.37,0.00019997,2]
[359984557,1746462641679,-450.0,0.00019997,2]
[359984558,1746462641688,-450.0,0.00019997,2]
[359984559,1746462641697,-1005.87,0.00019997,2]
[359984560,1746462641707,-1005.87,0.00019997,2]
[359984561,1746462641716,-450.0,0.00019997,2]
[359984562,1746462641725,-450.0,0.00019997,2]
[359984563,1746462641734,-450.0,0.00019997,2]
[359984564,1746462641743,-450.0,0.00019997,2]
[359984565,1746462641752,-450.0,0.00019997,2]
[359984566,1746462641762,-427.58,0.00019997,2]
[359984567,1746462641771,-744.69,0.00019997,2]
[359984568,1746462641780,-744.69,0.00019997,2]
[359984569,1746462641790,-450.0,0.00019997,2]
[359984570,1746462641799,-450.0,0.00019997,2]
[359984571,1746462641808,-16408.02,0.00019997,2]
[359984572,1746462641817,-16408.02,0.00019997,2]
[359984573,1746462641827,-450.0,0.00019997,2]
[359984574,1746462641836,-735.17,0.00019997,2]
[359984575,1746462641845,-1238.96,0.00019997,2]
[359984576,1746462641854,-1238.96,0.00019997,2]
[359984577,1746462641864,-5858.52,0.00019997,2]
[359984578,1746462641873,-3150.4443247,0.00019997,2]
[359984579,1746462641885,-327.179705,0.00019997,2]
[359984580,1746462641902,-547.0,0.00019997,2]
[359984581,1746462641913,-1833.8959703,0.00019997,2]
[359984582,1746462641922,-450.0,0.00019997,2]
[359984583,1746462641931,-450.0,0.00019997,2]
[359984584,1746462641940,-176.12704572,0.00019997,2]
[359984585,1746462641952,-4452.49717128,0.00019997,2]
[359984586,1746462641963,-1370.00290585,0.00019997,2]
[359984587,1746462641974,-308.82562174,0.00019997,2]
[359984588,1746462641986,-1375.787762,0.00019997,2]
[359984589,1746462641996,-442.03030755,0.00019997,2]
[359984590,1746462642007,-471.44461121,0.00019997,2]
[359984591,1746462642023,-764.8,0.00019997,2]
[359984592,1746462642041,-1729.85740307,0.00019997,2]
[359984609,1746462645342,-797.0,0.00019924,2]
[359984610,1746462645352,-5439.15717158,0.00019997,2]
[359984611,1746462645362,-450.0,0.00019997,2]
[359984612,1746462645372,-450.0,0.00019997,2]
[359984613,1746462645382,-450.0,0.00019997,2]
[359984614,1746462645391,-3383.95,0.00019997,2]
[359984615,1746462645401,-3383.95,0.00019997,2]
[359984616,1746462645414,-617.04,0.00019997,2]
[359984617,1746462645425,-617.04,0.00019997,2]
[359984618,1746462645434,-500.0,0.00019997,2]
[359984619,1746462645447,-975.28,0.00019997,2]
[359984620,1746462645457,-450.0,0.00019997,2]
[359984621,1746462645467,-450.0,0.00019997,2]
[359984622,1746462645476,-450.0,0.00019997,2]
[359984623,1746462645486,-185.05,0.00019997,2]
[359984624,1746462645496,-3846.74,0.00019997,2]
[359984625,1746462645505,-450.0,0.00019997,2]
[359984626,1746462645515,-450.0,0.00019997,2]
[359984627,1746462645526,-450.53,0.00019997,2]
[359984628,1746462645535,-450.0,0.00019997,2]
[359984629,1746462645545,-450.0,0.00019997,2]
[359984630,1746462645555,-450.0,0.00019997,2]
[359984631,1746462645565,-450.0,0.00019997,2]
[359984632,1746462645574,-450.0,0.00019997,2]
[359984633,1746462645584,-1225.52,0.00019997,2]
[359984634,1746462645594,-1318.06,0.00019997,2]
[359984635,1746462645604,-928.84,0.00019997,2]
[359984636,1746462645613,-1905.56,0.00019997,2]
[359984637,1746462645622,-860.58,0.00019997,2]
[359984638,1746462645632,-450.0,0.00019997,2]
[359984639,1746462645641,-450.0,0.00019997,2]
[359984640,1746462645651,-841.72,0.00019997,2]
[359984641,1746462645662,-450.0,0.00019997,2]
[359984642,1746462645671,-300.0,0.00019998,2]
[359984643,1746462645681,-500.0,0.00019998,2]
[359984644,1746462645690,-683.22783114,0.00019998,2]
[359984645,1746462645700,-4304.23493,0.00019998,2]
[359984646,1746462645709,-226.54749,0.00019998,2]
[359984647,1746462645718,-613.230198,0.00019998,2]
[359984648,1746462645728,-4815.51331252,0.00019998,2]
[359984649,1746462645739,-302.0,0.00019998,2]
[359984650,1746462645751,-4524.92489908,0.00019998,2]
[359984651,1746462645766,-1912.00908923,0.00019998,2]
[359984652,1746462645777,-12174.89497817,0.00019998,2]
[359984653,1746462645787,-300.0,0.00019998,2]
[359984654,1746462645796,-325.751762,0.00019998,2]
[359984655,1746462645806,-300.0,0.00019998,2]
[359984656,1746462645815,-500.0,0.00019998,2]
[359984657,1746462645825,-7717.875436,0.00019998,2]
[359984659,1746462645834,-187.07347,0.00019998,2]
[359984661,1746462645844,-593.37,0.00019998,2]
[359984663,1746462645853,-593.37,0.00019998,2]
[359984665,1746462645863,-593.37,0.00019998,2]
[359984667,1746462645872,-593.37,0.00019998,2]
[359984668,1746462645881,-593.37,0.00019998,2]
[359984669,1746462645891,-593.37,0.00019998,2]
[359984670,1746462645900,-450.0,0.00019998,2]
[359984671,1746462645911,-450.0,0.00019998,2]
[359984672,1746462645921,-450.0,0.00019998,2]
[359984673,1746462645931,-450.0,0.00019998,2]
[359984675,1746462645940,-1005.87,0.00019998,2]
[359984677,1746462645949,-1005.87,0.00019998,2]
[359984679,1746462645959,-1005.87,0.00019998,2]
[359984681,1746462645968,-1005.87,0.00019998,2]
[359984683,1746462645977,-389.43596402,0.00019998,2]
[359984685,1746462645987,-450.0,0.00019998,2]
[359984687,1746462645996,-450.0,0.00019998,2]
[359984689,1746462646006,-450.0,0.00019998,2]
[359984691,1746462646018,-450.0,0.00019998,2]
[359984693,1746462646027,-450.0,0.00019998,2]
[359984695,1746462646037,-450.0,0.00019998,2]
[359984697,1746462646047,-450.0,0.00019998,2]
[359984699,1746462646057,-450.0,0.00019998,2]
[359984700,1746462646067,-450.0,0.00019998,2]
[359984701,1746462646077,-373.7089108,0.00019998,2]
[359984702,1746462646086,-744.69,0.00019998,2]
[359984703,1746462646098,-744.69,0.00019998,2]
[359984704,1746462646108,-744.69,0.00019998,2]
[359984705,1746462646118,-744.69,0.00019998,2]
[359984706,1746462646127,-450.0,0.00019998,2]
[359984707,1746462646137,-528.83830632,0.00019998,2]
[359984708,1746462646181,961.05,0.0001903,2]
[359984709,1746462646295,-3303.64415074,0.00019998,2]
[359984710,1746462646311,-2034.42976274,0.00019998,2]
[359984711,1746462646331,-6147.24342687,0.00019998,2]
[359984712,1746462664741,-4393.86435333,0.00019998,2]
[359984713,1746462664751,-16408.02,0.00019998,2]
[359984714,1746462664760,-10861.13443252,0.00019998,2]
[359984715,1746462664771,-1144.90002,0.00019998,2]
[359984716,1746462664783,-4401.98554748,0.00019998,2]
[359984717,1746462664792,-11640.87664977,0.00019998,2]
[359984718,1746462664804,-1227.57,0.00019998,2]
[359984719,1746462682661,409.12151593,0.0003,30]
[359984720,1746462771112,500.0,0.0003,30]
[359984721,1746462781163,500.0,0.0003,30]
[359984722,1746462791668,500.0,0.0003,30]
[359984724,1746462901542,797.050601,0.0003,30]
[359984725,1746462902241,797.050601,0.0003,30]
[359984726,1746462902957,797.050601,0.0003,30]
[359984727,1746462903360,797.050601,0.0003,30]
[359984728,1746462903878,797.050601,0.0003,30]
[359984729,1746462904369,797.050601,0.0003,30]
[359984730,1746462905064,797.050601,0.0003,30]
[359984731,1746462905366,797.050601,0.0003,30]
[359984732,1746462905950,797.050601,0.0003,30]
[359984733,1746462907094,797.050601,0.0003,30]
[359984734,1746462916918,773.050601,0.0003,31]
[359984735,1746462917710,773.050601,0.0003,31]
[359984736,1746462918277,773.050601,0.0003,31]
[359984737,1746462918785,773.050601,0.0003,31]
[359984738,1746462919361,773.050601,0.0003,31]
[359984739,1746462919888,773.050601,0.0003,31]
[359984740,1746462920420,773.050601,0.0003,31]
[359984741,1746462921348,773.050601,0.0003,31]
[359984742,1746462939160,659.050601,0.0003,32]
[359984743,1746462939839,659.050601,0.0003,32]
[359984744,1746462940419,659.050601,0.0003,32]
[359984745,1746462940975,659.050601,0.0003,32]
[359984746,1746462941570,659.050601,0.0003,32]
[359984747,1746462942108,659.050601,0.0003,32]
[359984748,1746462945964,659.050601,0.0003,33]
[359984749,1746462946483,659.050601,0.0003,33]
[359984750,1746462947015,659.050601,0.0003,33]
[359984751,1746462947525,659.050601,0.0003,33]
[359984752,1746462948344,659.050601,0.0003,33]
[359984753,1746462948835,659.050601,0.0003,33]
[359984754,1746462954963,156.65,0.00018976,2]
[359984755,1746462973169,571.050601,0.0003,34]
[359984756,1746462973794,571.050601,0.0003,34]
[359984757,1746462974522,571.050601,0.0003,34]
[359984758,1746462974853,571.050601,0.0003,34]
[359984759,1746462975379,571.050601,0.0003,34]
[359984760,1746462975882,571.050601,0.0003,34]
[359984761,1746462976400,571.050601,0.0003,34]
[359984762,1746462977006,571.050601,0.0003,34]
[359984763,1746462977541,571.050601,0.0003,34]
[359984764,1746462978136,571.050601,0.0003,34]
[359984765,1746462982319,571.050601,0.0003,35]
[359984766,1746462982897,571.050601,0.0003,35]
[359984767,1746462983460,571.050601,0.0003,35]
[359984768,1746463002274,557.050601,0.0003,36]
[359984769,1746463002884,557.050601,0.0003,36]
[359984770,1746463003424,557.050601,0.0003,36]
[359984771,1746463003955,557.050601,0.0003,36]
[359984772,1746463004516,557.050601,0.0003,36]
[359984773,1746463005070,557.050601,0.0003,36]
[359984774,1746463005676,557.050601,0.0003,36]
[359984775,1746463007050,557.050601,0.0003,36]
[359984776,1746463007375,557.050601,0.0003,36]
[359984777,1746463007536,557.050601,0.0003,36]
[359984778,1746463008145,557.050601,0.0003,36]
[359984779,1746463008689,557.050601,0.0003,36]
[359984780,1746463012641,557.050601,0.0003,37]
[359984781,1746463025847,977.050601,0.0003,37]
[359984782,1746463026288,977.050601,0.0003,37]
[359984783,1746463027108,977.050601,0.0003,37]
[359984784,1746463027670,977.050601,0.0003,37]
[359984785,1746463031000,977.050601,0.0003,38]
[359984786,1746463031570,977.050601,0.0003,38]
[359984787,1746463032089,977.050601,0.0003,38]
[359984788,1746463032668,977.050601,0.0003,38]
[359984789,1746463033633,977.050601,0.0003,38]
[359984790,1746463033789,977.050601,0.0003,38]
[359984791,1746463053059,727.050601,0.0003,39]
[359984792,1746463053728,727.050601,0.0003,39]
[359984793,1746463054274,727.050601,0.0003,39]
[359984794,1746463054866,727.050601,0.0003,39]
[359984795,1746463055458,727.050601,0.0003,39]
[359984796,1746463056079,727.050601,0.0003,39]
[359984797,1746463057053,727.050601,0.0003,39]
[359984798,1746463058137,727.050601,0.0003,39]
[359984799,1746463058914,727.050601,0.0003,39]
[359984800,1746463059270,727.050601,0.0003,39]
[359984801,1746463059911,727.050601,0.0003,39]
[359984802,1746463073859,151.050601,0.0003,40]
[359984803,1746463074557,151.050601,0.0003,40]
[359984804,1746463074948,151.050601,0.0003,40]
[359984805,1746463075436,151.050601,0.0003,40]
[359984806,1746463075994,151.050601,0.0003,40]
[359984807,1746463076544,151.050601,0.0003,40]
[359984808,1746463077038,151.050601,0.0003,40]
[359984809,1746463077619,151.050601,0.0003,40]
[359984810,1746463078187,151.050601,0.0003,40]
[359984811,1746463078720,151.050601,0.0003,40]
[359984812,1746463079277,151.050601,0.0003,40]
[359984813,1746463079807,151.050601,0.0003,40]
[359984814,1746463080534,151.050601,0.0003,40]
[359984815,1746463080954,151.050601,0.0003,40]
[359984816,1746463081542,151.050601,0.0003,40]
[359984817,1746463082145,151.050601,0.0003,40]
[359984818,1746463084789,151.050601,0.0003,40]
[359984819,1746463085343,151.050601,0.0003,40]
[359984820,1746463094550,1000.0,0.00018939,2]
[359984821,1746463101655,257.050601,0.0003,41]
[359984822,1746463102578,257.050601,0.0003,41]
[359984823,1746463103106,257.050601,0.0003,41]
[359984824,1746463103833,257.050601,0.0003,41]
[359984825,1746463104145,257.050601,0.0003,41]
[359984826,1746463104691,257.050601,0.0003,41]
[359984827,1746463105189,257.050601,0.0003,41]
[359984828,1746463105763,257.050601,0.0003,41]
[359984829,1746463106550,257.050601,0.0003,41]
[359984830,1746463106978,257.050601,0.0003,41]
[359984831,1746463107653,257.050601,0.0003,41]
[359984832,1746463108463,257.050601,0.0003,41]
[359984833,1746463125668,709.050601,0.0003,42]
[359984834,1746463126434,709.050601,0.0003,42]
[359984835,1746463126940,709.050601,0.0003,42]
[359984836,1746463127328,709.050601,0.0003,42]
[359984837,1746463127906,709.050601,0.0003,42]
[359984838,1746463128488,709.050601,0.0003,42]
[359984839,1746463130910,709.050601,0.0003,42]
[359984840,1746463134183,709.050601,0.0003,43]
[359984841,1746463134731,709.050601,0.0003,43]
[359984842,1746463135247,709.050601,0.0003,43]
[359984843,1746463135803,709.050601,0.0003,43]
[359984844,1746463152591,1171.050601,0.0003,44]
[359984845,1746463153190,1171.050601,0.0003,44]
[359984846,1746463153686,1171.050601,0.0003,44]
[359984847,1746463154288,1171.050601,0.0003,44]
[359984848,1746463154860,1171.050601,0.0003,44]
[359984849,1746463155501,1171.050601,0.0003,44]
[359984850,1746463160769,1171.050601,0.0003,45]
[359984851,1746463161309,1171.050601,0.0003,45]
[359984852,1746463178290,331.050601,0.0003,46]
[359984853,1746463178891,331.050601,0.0003,46]
[359984854,1746463179468,331.050601,0.0003,46]
[359984855,1746463180304,331.050601,0.0003,46]
[359984856,1746463180698,331.050601,0.0003,46]
[359984857,1746463182656,200.17,0.00018934,2]
[359984858,1746463183960,331.050601,0.0003,47]
[359984859,1746463184674,331.050601,0.0003,47]
[359984860,1746463185142,331.050601,0.0003,47]
[359984861,1746463185777,331.050601,0.0003,47]
[359984862,1746463186445,331.050601,0.0003,47]
[359984863,1746463191924,331.050601,0.0003,48]
[359984864,1746463192507,331.050601,0.0003,48]
[359984865,1746463193061,331.050601,0.0003,48]
[359984866,1746463193685,331.050601,0.0003,48]
[359984867,1746463194322,331.050601,0.0003,48]
[359984868,1746463206375,311.050601,0.0003,49]
[359984869,1746463207105,311.050601,0.0003,49]
[359984870,1746463207766,311.050601,0.0003,49]
[359984871,1746463208510,311.050601,0.0003,49]
[359984872,1746463214330,311.050601,0.0003,50]
[359984873,1746463242583,151.050601,0.0003,52]
[359984874,1746463267321,274.050601,0.0003,53]
[359984875,1746463312874,150.050601,0.0003,54]
[359984876,1746463316401,150.050601,0.0003,55]
[359984877,1746463319741,150.050601,0.0003,56]
[359984878,1746463323208,150.050601,0.0003,57]
[359984879,1746463326777,150.050601,0.0003,58]
[359984880,1746463331249,150.050601,0.0003,59]
[359984881,1746463368032,150.050601,0.0003,60]
[359984882,1746463368593,-152.0,0.00019502,2]
[359984883,1746463371597,150.050601,0.0003,61]
[359984884,1746463373192,-250.0,0.00019502,2]
[359984885,1746463374484,150.050601,0.0003,62]
[359984886,1746463377478,150.050601,0.0003,63]
[359984887,1746463380337,-168.32156732,0.00019502,2]
[359984888,1746463381624,150.050601,0.0003,64]
[359984889,1746463384273,-166.78,0.00019502,2]
[359984890,1746463387332,150.050601,0.0003,65]
[359984891,1746463391091,-250.0,0.00019502,2]
[359984892,1746463401480,-200.0,0.00019502,2]
[359984893,1746463402845,555.910911,0.00027699,120]
[359984894,1746463404494,150.050601,0.0003,66]
[359984895,1746463407692,150.050601,0.0003,67]
[359984896,1746463408533,-186.6999334,0.00019876,7]
[359984897,1746463412760,150.050601,0.0003,68]
[359984898,1746463414559,-177.6801636,0.00019502,2]
[359984899,1746463422523,150.050601,0.0003,69]
[359984900,1746463424648,-234.64540729,0.00019502,2]
[359984901,1746463430665,-683.03717717,0.00019502,2]
[359984902,1746463438369,250.0,0.00019297,2]
[359984903,1746463441195,-158.87171738,0.000196,2]
[359984904,1746463445156,-41.12828262,0.000196,2]
[359984905,1746463445180,-200.0,0.00019675,2]
[359984906,1746463445204,-69.59171738,0.00019749,2]
[359984907,1746463448956,783.49,0.00017047,2]
[359984908,1746463449208,783.49,0.00019311,2]
[359984909,1746463451093,-462.72,0.00019502,2]
[359984910,1746463457196,-152.0,0.00019502,2]
[359984911,1746463485780,-152.0,0.00019502,2]
[359984912,1746463492963,-291.27216806,0.00019502,2]
[359984913,1746463501080,-168.69719059,0.00019502,2]
[359984914,1746463503301,367.77,0.00019,2]
[359984915,1746463503845,-156.34813292,0.00019502,2]
[359984916,1746463514746,-3.02352743,0.00019502,2]
[359984917,1746463514768,-200.0,0.000196,2]
[359984918,1746463514791,-96.97647257,0.00019749,2]
[359984919,1746463520725,-166.69,0.00019517,2]
[359984920,1746463520747,-33.43181005,0.00019749,2]
[359984921,1746463520775,-76.87818995,0.00019753,2]
[359984922,1746463526979,-126.71428872,0.00019753,2]
[359984923,1746463527001,-40.49337411,0.00019785,2]
[359984924,1746463537347,-207.4,0.00019785,2]
[359984925,1746463540213,-300.0,0.00019785,2]
[359984926,1746463544690,-187.57756112,0.00019785,2]
[359984927,1746463544712,-129.41284788,0.00019798,2]
[359984928,1746463550842,-268.931376,0.00019798,2]
[359984929,1746463550864,-31.068624,0.00019864,2]
[359984930,1746463554701,-176.331376,0.00019864,2]
[359984931,1746463554723,-92.6,0.00019875,2]
[359984932,1746463581480,2519.3,0.00030137,120]
[359984933,1746463599249,19218.99,0.00018962,2]
[359984944,1746463656625,605.95,0.00018947,2]
[359985117,1746463813162,2039.81220147,0.00030137,120]
[359985121,1746463831500,-255.4848072,0.00019798,2]
[359985122,1746463831509,-166.78,0.0001986,2]
[359985123,1746463831519,-207.4,0.00019864,2]
[359985124,1746463831528,-300.0,0.00019875,2]
[359985125,1746463831538,-1200.0,0.00019875,2]
[359985126,1746463831547,-300.0,0.00019875,2]
[359985127,1746463831557,-300.0,0.00019875,2]
[359985128,1746463831567,-200.0,0.00019876,2]
[359985129,1746463831576,-694.02,0.00019876,2]
[359985130,1746463831586,-2832.55,0.00019876,2]
[359985131,1746463831595,-2615.14280061,0.00019876,2]
[359985132,1746463831607,-5342.93719939,0.00019876,2]
[359985133,1746463831616,-999.99,0.00019876,2]
[359985134,1746463831625,-113.2900666,0.00019876,7]
[359985135,1746463831635,-150.99,0.00019876,2]
[359985136,1746463831644,-200.0,0.00019878,2]
[359985137,1746463831655,-1608.4771,0.00019878,2]
[359985138,1746463831663,-164.04804447,0.00019884,2]
[359985139,1746463831673,-163.12182954,0.00019884,2]
[359985140,1746463831682,-574.16237325,0.00019885,2]
[359985141,1746463831691,-164.04804441,0.00019886,2]
[359985142,1746463831700,-164.04804441,0.00019889,2]
[359985143,1746463831709,-164.04804441,0.00019891,2]
[359985144,1746463831719,-164.04804441,0.00019893,2]
[359985145,1746463831728,-164.04804441,0.00019895,2]
[359985146,1746463831737,-164.04804441,0.00019898,2]
[359985147,1746463831746,-164.04804441,0.000199,2]
[359985148,1746463831755,-209.37248286,0.000199,2]
[359985149,1746463831764,-625.0,0.00019924,2]
[359985150,1746463831773,-797.0,0.00019924,2]
[359985151,1746463831782,-551.0,0.00019924,2]
[359985152,1746463831791,-1452.0,0.00019924,2]
[359985153,1746463831801,-915.0,0.00019924,2]
[359985154,1746463831811,-582.0,0.00019924,2]
[359985155,1746463831819,-857.615,0.00019924,2]
[359985156,1746463831828,-878.0,0.00019924,2]
[359985157,1746463831837,-5728.0,0.00019939,2]
[359985158,1746463831846,-1019.0,0.00019971,2]
[359985159,1746463831855,-450.0,0.00019971,2]
[359985160,1746463831866,-628.66,0.00019971,2]
[359985162,1746463831875,-450.0,0.00019971,2]
[359985164,1746463831884,-450.0,0.00019971,2]
[359985166,1746463831893,-450.0,0.00019971,2]
[359985167,1746463831902,-202.31,0.00019971,2]
[359985169,1746463831912,-450.0,0.00019971,2]
[359985172,1746463831922,-205.75168017,0.00019971,2]
[359985173,1746463831931,-450.0,0.00019971,2]
[359985175,1746463831941,-450.0,0.00019971,2]
[359985177,1746463831950,-450.0,0.00019971,2]
[359985180,1746463831960,-450.0,0.00019971,2]
[359985181,1746463831969,-450.0,0.00019971,2]
[359985184,1746463831979,-450.0,0.00019971,2]
[359985186,1746463831988,-450.0,0.00019971,2]
[359985187,1746463831997,-2164.0,0.00019973,2]
[359985189,1746463832006,-156.5666741,0.00019973,2]
[359985191,1746463832015,-508.08785745,0.00019973,2]
[359985193,1746463832025,-500.0,0.00019973,2]
[359985195,1746463832035,-500.0,0.00019973,2]
[359985197,1746463832043,-3695.0,0.00019973,2]
[359985200,1746463832053,-160.52041159,0.00019973,2]
[359985202,1746463832062,-500.0,0.00019973,2]
[359985204,1746463832071,-500.0,0.00019973,2]
[359985206,1746463832080,-628.66,0.00019979,2]
[359985208,1746463832089,-450.0,0.00019979,2]
[359985210,1746463832098,-450.0,0.00019979,2]
[359985212,1746463832108,-450.0,0.00019979,2]
[359985214,1746463832117,-450.0,0.00019979,2]
[359985216,1746463832126,-450.0,0.00019979,2]
[359985218,1746463832135,-450.0,0.00019979,2]
[359985220,1746463832144,-450.0,0.00019979,2]
[359985222,1746463832153,-450.0,0.00019979,2]
[359985224,1746463832162,-450.0,0.00019979,2]
[359985226,1746463832171,-450.0,0.00019979,2]
[359985227,1746463832180,-500.0,0.00019982,2]
[359985230,1746463832191,-500.0,0.00019982,2]
[359985231,1746463832201,-500.0,0.00019982,2]
[359985232,1746463832210,-500.0,0.00019982,2]
[359985233,1746463832219,-500.0,0.00019982,2]
[359985234,1746463832229,-500.0,0.00019982,2]
[359985235,1746463832238,-500.0,0.00019982,2]
[359985236,1746463832248,-500.0,0.00019982,2]
[359985237,1746463832257,-196.65772412,0.00019982,2]
[359985238,1746463832269,-303.34227588,0.00019982,2]
[359985239,1746463832278,-500.0,0.00019982,2]
[359985240,1746463832289,-500.0,0.00019982,2]
[359985241,1746463832298,-500.0,0.00019982,2]
[359985242,1746463832308,-500.0,0.00019982,2]
[359985243,1746463832317,-500.0,0.00019982,2]
[359985244,1746463832326,-500.0,0.00019982,2]
[359985245,1746463832336,-500.0,0.00019982,2]
[359985247,1746463832345,-500.0,0.00019982,2]
[359985249,1746463832355,-500.0,0.00019982,2]
[359985251,1746463832364,-500.0,0.00019982,2]
[359985253,1746463832373,-500.0,0.00019982,2]
[359985254,1746463832383,-500.0,0.00019982,2]
[359985255,1746463832393,-500.0,0.00019982,2]
[359985256,1746463832402,-500.0,0.00019982,2]
[359985257,1746463832412,-500.0,0.00019982,2]
[359985258,1746463832421,-500.0,0.00019982,2]
[359985259,1746463832430,-500.0,0.00019982,2]
[359985260,1746463832444,-500.0,0.00019982,2]
[359985261,1746463832454,-500.0,0.00019982,2]
[359985262,1746463832463,-500.0,0.00019982,2]
[359985263,1746463832472,-500.0,0.00019982,2]
[359985264,1746463832482,-500.0,0.00019982,2]
[359985265,1746463832492,-500.0,0.00019982,2]
[359985266,1746463832502,-500.0,0.00019982,2]
[359985267,1746463832513,-500.0,0.00019982,2]
[359985268,1746463832523,-500.0,0.00019982,2]
[359985269,1746463832532,-506.38383936,0.00019982,2]
[359985270,1746463832542,-500.0,0.00019982,2]
[359985271,1746463832551,-500.0,0.00019982,2]
[359985272,1746463832726,-500.0,0.00019982,2]
[359985273,1746463832736,-500.0,0.00019982,2]
[359985274,1746463832745,-500.0,0.00019982,2]
[359985275,1746463832755,-500.0,0.00019982,2]
[359985276,1746463832765,-500.0,0.00019982,2]
[359985277,1746463832774,-500.0,0.00019982,2]
[359985278,1746463832784,-474.05815596,0.00019982,2]
[359985279,1746463832796,-25.94184404,0.00019982,2]
[359985280,1746463832805,-500.0,0.00019982,2]
[359985281,1746463832814,-500.0,0.00019982,2]
[359985282,1746463832824,-500.0,0.00019982,2]
[359985283,1746463832835,-500.0,0.00019982,2]
[359985284,1746463832845,-500.0,0.00019982,2]
[359985285,1746463832855,-500.0,0.00019982,2]
[359985286,1746463832864,-370.34046492,0.00019982,2]
[359985287,1746463832876,-129.65953508,0.00019982,2]
[359985288,1746463832885,-500.0,0.00019982,2]
[359985289,1746463832894,-500.0,0.00019982,2]
[359985290,1746463832904,-500.0,0.00019982,2]
[359985291,1746463832913,-500.0,0.00019982,2]
[359985292,1746463832922,-200.0,0.00019982,2]
[359985293,1746463832931,-500.0,0.00019982,2]
[359985294,1746463832940,-500.0,0.00019982,2]
[359985295,1746463832949,-500.0,0.00019982,2]
[359985296,1746463832959,-500.0,0.00019982,2]
[359985297,1746463832968,-500.0,0.00019982,2]
[359985298,1746463832977,-193.34582046,0.00019982,2]
[359985299,1746463832988,-306.65417954,0.00019982,2]